[Event "*** Titled Tuesday Blitz"]
[Site "Chess.com"]
[Date "2019.07.02"]
[Round "4"]
[White "VFernandezB"]
[Black "ilm2034"]
[Result "1-0"]
[WhiteElo "2348"]
[BlackElo "2515"]
[TimeControl "180+2"]
[EndTime "13:51:24 PDT"]
[Termination "VFernandezB won by resignation"]

1. e4 {[%clk 0:03:01.9]} 1... c5 {[%clk 0:03:00.9]} 2. Nf3 {[%clk 0:03:02.3]}
2... d6 {[%clk 0:03:01.4]} 3. d4 {[%clk 0:03:03.7]} 3... cxd4 {[%clk 0:03:02.5]}
4. Nxd4 {[%clk 0:03:05.3]} 4... Nf6 {[%clk 0:03:04]} 5. Nc3 {[%clk 0:03:06.8]}
5... g6 {[%clk 0:03:05.2]} 6. Be3 {[%clk 0:03:06.2]} 6... Bg7 {[%clk 0:03:06.7]}
7. f3 {[%clk 0:03:07.2]} 7... O-O {[%clk 0:03:08]} 8. Bc4 {[%clk 0:03:08.4]}
8... Nc6 {[%clk 0:03:03.6]} 9. Bb3 {[%clk 0:03:09.3]} 9... Qa5 {[%clk
0:03:02.2]} 10. Qd2 {[%clk 0:03:09.5]} 10... Re8 {[%clk 0:03:00.2]} 11. O-O
{[%clk 0:03:09.4]} 11... e6 {[%clk 0:02:57.4]} 12. Nxc6 {[%clk 0:03:06.3]} 12...
bxc6 {[%clk 0:02:56.3]} 13. Qxd6 {[%clk 0:03:02.6]} 13... Ba6 {[%clk 0:02:55.8]}
14. Rfd1 {[%clk 0:02:59.3]} 14... Rec8 {[%clk 0:02:38.7]} 15. Qc5 {[%clk
0:02:58.1]} 15... Qc7 {[%clk 0:02:39.3]} 16. Qd6 {[%clk 0:02:46.4]} 16... Qb7
{[%clk 0:02:36.8]} 17. Na4 {[%clk 0:02:45]} 17... Bf8 {[%clk 0:02:19.4]} 18. Qe5
{[%clk 0:02:41.5]} 18... Nd7 {[%clk 0:02:20.2]} 19. Qg3 {[%clk 0:02:38]} 19...
c5 {[%clk 0:02:20.9]} 20. c4 {[%clk 0:02:36.5]} 20... Nb6 {[%clk 0:02:14.2]} 21.
Nxb6 {[%clk 0:02:34.5]} 21... Qxb6 {[%clk 0:02:12.4]} 22. h4 {[%clk 0:02:31.8]}
22... Bb7 {[%clk 0:02:11.4]} 23. h5 {[%clk 0:02:31.6]} 23... a5 {[%clk
0:02:12.7]} 24. Rab1 {[%clk 0:02:22.1]} 24... Ba6 {[%clk 0:02:10.6]} 25. Rdc1
{[%clk 0:02:19.1]} 25... Bg7 {[%clk 0:02:05.6]} 26. h6 {[%clk 0:02:18]} 26...
Bf6 {[%clk 0:01:53.1]} 27. Bg5 {[%clk 0:02:16.4]} 27... Bd4+ {[%clk 0:01:52.2]}
28. Kh1 {[%clk 0:02:16.6]} 28... f6 {[%clk 0:01:48.8]} 29. Bd2 {[%clk
0:02:13.9]} 29... Kf7 {[%clk 0:01:49.6]} 30. Bc3 {[%clk 0:02:14.6]} 30... Rd8
{[%clk 0:01:49.4]} 31. e5 {[%clk 0:01:54.7]} 31... fxe5 {[%clk 0:01:45.2]} 32.
Bxd4 {[%clk 0:01:54.8]} 32... Rxd4 {[%clk 0:01:29.2]} 33. Qxe5 {[%clk
0:01:55.1]} 33... Qd6 {[%clk 0:01:05.1]} 34. Qg7+ {[%clk 0:01:53.9]} 34... Ke8
{[%clk 0:01:05.3]} 35. Qg8+ {[%clk 0:01:51.6]} 35... Kd7 {[%clk 0:01:05.5]} 36.
Ba4+ {[%clk 0:01:35.2]} 36... Kc7 {[%clk 0:01:04.7]} 37. Qxh7+ {[%clk 0:01:34]}
37... Kb6 {[%clk 0:01:00.1]} 38. Rd1 {[%clk 0:01:34.8]} 38... Rh4+ {[%clk
0:00:42.8]} 39. Kg1 {[%clk 0:01:35.3]} 39... Qh2+ {[%clk 0:00:44.1]} 40. Kf2
{[%clk 0:01:36.3]} 40... Rf8 {[%clk 0:00:45.8]} 41. Rd3 {[%clk 0:01:24.2]} 41...
Rg4 {[%clk 0:00:41.1]} 42. Rb3+ {[%clk 0:01:23.4]} 1-0

[Event "*** Titled Tuesday Blitz"]
[Site "Chess.com"]
[Date "2019.07.02"]
[Round "4"]
[White "resha1988"]
[Black "IMAghasiyevKamal"]
[Result "0-1"]
[WhiteElo "2735"]
[BlackElo "2538"]
[TimeControl "180+2"]
[EndTime "13:51:27 PDT"]
[Termination "IMAghasiyevKamal won by resignation"]

1. Nf3 {[%clk 0:03:01.3]} 1... Nf6 {[%clk 0:03:00.7]} 2. c4 {[%clk 0:03:00.3]}
2... g6 {[%clk 0:02:58.3]} 3. b3 {[%clk 0:03:01.7]} 3... Bg7 {[%clk 0:02:59.3]}
4. Bb2 {[%clk 0:03:03.2]} 4... O-O {[%clk 0:03:00.8]} 5. e3 {[%clk 0:03:04.3]}
5... c5 {[%clk 0:02:57]} 6. Be2 {[%clk 0:03:04.7]} 6... b6 {[%clk 0:02:57.3]} 7.
O-O {[%clk 0:03:05.7]} 7... Bb7 {[%clk 0:02:58.4]} 8. d4 {[%clk 0:03:02.9]} 8...
cxd4 {[%clk 0:02:57.7]} 9. Nxd4 {[%clk 0:03:04.1]} 9... Nc6 {[%clk 0:02:54.6]}
10. Bf3 {[%clk 0:02:58]} 10... Qc8 {[%clk 0:02:54.5]} 11. Nd2 {[%clk 0:02:57.1]}
11... Nxd4 {[%clk 0:02:54.2]} 12. Bxd4 {[%clk 0:02:59]} 12... Bc6 {[%clk
0:02:50.2]} 13. a4 {[%clk 0:02:49]} 13... Qb7 {[%clk 0:02:47.3]} 14. Bxc6 {[%clk
0:02:38.8]} 14... dxc6 {[%clk 0:02:43.2]} 15. Qc2 {[%clk 0:02:36.1]} 15... c5
{[%clk 0:02:41.6]} 16. Bc3 {[%clk 0:02:34.6]} 16... Qc7 {[%clk 0:02:37.3]} 17.
h3 {[%clk 0:02:28.6]} 17... Rad8 {[%clk 0:02:33.1]} 18. Rfd1 {[%clk 0:02:29.1]}
18... Rd7 {[%clk 0:02:28.5]} 19. Nf3 {[%clk 0:02:29.9]} 19... Rfd8 {[%clk
0:02:26]} 20. Rxd7 {[%clk 0:02:26]} 20... Qxd7 {[%clk 0:02:23.9]} 21. a5 {[%clk
0:02:18.9]} 21... h6 {[%clk 0:02:08.6]} 22. Ne5 {[%clk 0:01:54.1]} 22... Qb7
{[%clk 0:02:04.9]} 23. Nf3 {[%clk 0:01:29]} 23... Qe4 {[%clk 0:01:59.3]} 24.
Qxe4 {[%clk 0:00:58.9]} 24... Nxe4 {[%clk 0:02:00.1]} 25. Bxg7 {[%clk
0:01:00.8]} 25... Kxg7 {[%clk 0:02:01.6]} 26. Ne5 {[%clk 0:01:00.3]} 26... Rd6
{[%clk 0:01:55.9]} 27. axb6 {[%clk 0:00:47.1]} 27... axb6 {[%clk 0:01:54.4]} 28.
Ra2 {[%clk 0:00:17.4]} 28... h5 {[%clk 0:01:45.1]} 29. f3 {[%clk 0:00:16.9]}
29... Rd1+ {[%clk 0:01:41.5]} 30. Kh2 {[%clk 0:00:17]} 30... Nd2 {[%clk
0:01:39.3]} 31. Kg3 {[%clk 0:00:14.8]} 31... Nxb3 {[%clk 0:01:35]} 32. Rb2
{[%clk 0:00:15.3]} 32... Na5 {[%clk 0:01:30.4]} 33. Rxb6 {[%clk 0:00:16.1]}
33... f6 {[%clk 0:01:31.8]} 34. Nc6 {[%clk 0:00:17.1]} 34... Rd6 {[%clk
0:01:30.3]} 35. Nxa5 {[%clk 0:00:11.5]} 35... Rxb6 {[%clk 0:01:31.2]} 36. Kf4
{[%clk 0:00:11.7]} 36... Kf7 {[%clk 0:01:30.5]} 37. g4 {[%clk 0:00:12.7]} 37...
h4 {[%clk 0:01:30.4]} 38. Ke4 {[%clk 0:00:12.6]} 38... Ke6 {[%clk 0:01:29.8]}
0-1

[Event "*** Titled Tuesday Blitz"]
[Site "Chess.com"]
[Date "2019.07.02"]
[Round "4"]
[White "dopolian"]
[Black "dcremisi"]
[Result "0-1"]
[WhiteElo "2333"]
[BlackElo "2258"]
[TimeControl "180+2"]
[EndTime "13:51:28 PDT"]
[Termination "dcremisi won by resignation"]

1. e4 {[%clk 0:03:01.9]} 1... Nf6 {[%clk 0:02:54.9]} 2. e5 {[%clk 0:03:01]} 2...
Nd5 {[%clk 0:02:56.1]} 3. c4 {[%clk 0:03:02.6]} 3... Nb6 {[%clk 0:02:56.6]} 4.
d4 {[%clk 0:03:03.4]} 4... d6 {[%clk 0:02:58.1]} 5. Nf3 {[%clk 0:03:04.8]} 5...
g6 {[%clk 0:02:59.1]} 6. Nc3 {[%clk 0:03:02.6]} 6... Bg7 {[%clk 0:02:59.4]} 7.
exd6 {[%clk 0:03:03.7]} 7... cxd6 {[%clk 0:02:58.9]} 8. b3 {[%clk 0:03:02.5]}
8... O-O {[%clk 0:02:59.9]} 9. Be3 {[%clk 0:03:02.5]} 9... N8d7 {[%clk
0:02:58.8]} 10. Be2 {[%clk 0:03:01.7]} 10... Rb8 {[%clk 0:02:56.5]} 11. O-O
{[%clk 0:03:01.6]} 11... e6 {[%clk 0:02:56.4]} 12. Rc1 {[%clk 0:02:58.8]} 12...
Na8 {[%clk 0:02:55.5]} 13. Bf4 {[%clk 0:02:47.4]} 13... e5 {[%clk 0:02:37.7]}
14. dxe5 {[%clk 0:02:35.6]} 14... Nxe5 {[%clk 0:02:37]} 15. Nd5 {[%clk
0:02:30.7]} 15... Nb6 {[%clk 0:02:30]} 16. Nxb6 {[%clk 0:02:27]} 16... Qxb6
{[%clk 0:02:30]} 17. Be3 {[%clk 0:02:26.4]} 17... Qc7 {[%clk 0:02:30.6]} 18. a4
{[%clk 0:02:20]} 18... a6 {[%clk 0:02:23.8]} 19. Qd2 {[%clk 0:02:01.7]} 19...
Be6 {[%clk 0:02:20.2]} 20. Rfd1 {[%clk 0:01:59.2]} 20... Rfd8 {[%clk 0:02:20.8]}
21. Nd4 {[%clk 0:01:57.2]} 21... Nc6 {[%clk 0:02:16.1]} 22. Bf3 {[%clk
0:01:46.4]} 22... Nxd4 {[%clk 0:02:15.7]} 23. Bxd4 {[%clk 0:01:46.5]} 23... Bxd4
{[%clk 0:02:17.1]} 24. Qxd4 {[%clk 0:01:48.4]} 24... b6 {[%clk 0:02:11.5]} 25.
Bd5 {[%clk 0:01:43.9]} 25... Bxd5 {[%clk 0:02:09.9]} 26. cxd5 {[%clk 0:01:31.8]}
26... Qb7 {[%clk 0:02:06.1]} 27. Rc6 {[%clk 0:01:32.8]} 27... Rbc8 {[%clk
0:02:04.1]} 28. Rdc1 {[%clk 0:01:33.6]} 28... Rxc6 {[%clk 0:02:04.9]} 29. Rxc6
{[%clk 0:01:34.6]} 29... Rc8 {[%clk 0:02:05]} 30. Qc4 {[%clk 0:01:21.6]} 30...
Re8 {[%clk 0:02:04.2]} 31. h3 {[%clk 0:01:13.3]} 31... b5 {[%clk 0:02:04.7]} 32.
axb5 {[%clk 0:01:11.1]} 32... axb5 {[%clk 0:02:06.6]} 33. Qb4 {[%clk 0:01:06.2]}
33... Qe7 {[%clk 0:01:51.8]} 34. Qd4 {[%clk 0:00:40.1]} 34... Qe1+ {[%clk
0:01:51.2]} 35. Kh2 {[%clk 0:00:41.1]} 35... Qb1 {[%clk 0:01:36.2]} 36. Rxd6
{[%clk 0:00:40]} 36... Qxb3 {[%clk 0:01:36.3]} 37. Rb6 {[%clk 0:00:33.1]} 37...
Qc4 {[%clk 0:01:35]} 38. Qd2 {[%clk 0:00:26]} 38... Qc7+ {[%clk 0:01:34.5]} 39.
d6 {[%clk 0:00:24.5]} 39... Qxb6 {[%clk 0:01:34.9]} 40. d7 {[%clk 0:00:16.2]}
40... Rd8 {[%clk 0:01:35.8]} 41. Qe2 {[%clk 0:00:12.3]} 41... Qc7+ {[%clk
0:01:35.4]} 42. g3 {[%clk 0:00:13.8]} 42... Qxd7 {[%clk 0:01:36.6]} 0-1

[Event "*** Titled Tuesday Blitz"]
[Site "Chess.com"]
[Date "2019.07.02"]
[Round "4"]
[White "FranciscodelaF"]
[Black "witcher8"]
[Result "0-1"]
[WhiteElo "2261"]
[BlackElo "2439"]
[TimeControl "180+2"]
[EndTime "13:51:31 PDT"]
[Termination "witcher8 won by resignation"]

1. d4 {[%clk 0:03:01.9]} 1... Nf6 {[%clk 0:02:59.7]} 2. c4 {[%clk 0:03:02.8]}
2... g6 {[%clk 0:03:00.4]} 3. Nc3 {[%clk 0:02:59.9]} 3... Bg7 {[%clk 0:03:01.1]}
4. Nf3 {[%clk 0:02:59.4]} 4... O-O {[%clk 0:03:00.5]} 5. g3 {[%clk 0:03:00.9]}
5... d6 {[%clk 0:03:00.7]} 6. Bg2 {[%clk 0:03:02.1]} 6... Nc6 {[%clk 0:03:00.5]}
7. O-O {[%clk 0:03:02.8]} 7... a6 {[%clk 0:03:00.6]} 8. Qd3 {[%clk 0:03:03.8]}
8... e5 {[%clk 0:02:33.2]} 9. dxe5 {[%clk 0:03:04.7]} 9... dxe5 {[%clk
0:02:33.7]} 10. Qxd8 {[%clk 0:03:06.6]} 10... Rxd8 {[%clk 0:02:33.3]} 11. Bg5
{[%clk 0:03:08.5]} 11... Re8 {[%clk 0:02:32.2]} 12. Nd2 {[%clk 0:03:04.1]} 12...
Nd4 {[%clk 0:02:21.9]} 13. e3 {[%clk 0:02:51.8]} 13... Ne6 {[%clk 0:01:53.9]}
14. Bxf6 {[%clk 0:02:52.3]} 14... Bxf6 {[%clk 0:01:54.5]} 15. Nde4 {[%clk
0:02:52.7]} 15... Bd8 {[%clk 0:01:46.7]} 16. Rfd1 {[%clk 0:02:52.3]} 16... f5
{[%clk 0:01:46.2]} 17. Nd2 {[%clk 0:02:50.3]} 17... e4 {[%clk 0:01:36.6]} 18.
Nd5 {[%clk 0:02:49.3]} 18... c6 {[%clk 0:01:35.6]} 19. Nf4 {[%clk 0:02:49.7]}
19... Bf6 {[%clk 0:01:33.2]} 20. Rab1 {[%clk 0:02:47]} 20... Nxf4 {[%clk
0:01:29.5]} 21. gxf4 {[%clk 0:02:47.9]} 21... Be6 {[%clk 0:01:31.4]} 22. b3
{[%clk 0:02:48.1]} 22... Rad8 {[%clk 0:01:31.2]} 23. Nf1 {[%clk 0:02:48.9]}
23... b5 {[%clk 0:01:17.9]} 24. cxb5 {[%clk 0:02:48.8]} 24... axb5 {[%clk
0:01:17.3]} 25. Ng3 {[%clk 0:02:50.7]} 25... c5 {[%clk 0:01:13.3]} 26. Bf1
{[%clk 0:02:51.2]} 26... c4 {[%clk 0:01:11.8]} 27. bxc4 {[%clk 0:02:51.1]} 27...
bxc4 {[%clk 0:01:13.1]} 28. Ne2 {[%clk 0:02:51.7]} 28... Ra8 {[%clk 0:00:57.8]}
29. Nd4 {[%clk 0:02:51.3]} 29... Bf7 {[%clk 0:00:53.8]} 30. Rbc1 {[%clk
0:02:51.1]} 30... Rec8 {[%clk 0:00:50.5]} 31. Rc2 {[%clk 0:02:49.9]} 31... c3
{[%clk 0:00:34.5]} 32. Rdc1 {[%clk 0:02:43.9]} 32... Bxd4 {[%clk 0:00:35]} 33.
exd4 {[%clk 0:02:45]} 33... Ra3 {[%clk 0:00:36.5]} 34. Be2 {[%clk 0:02:40.5]}
34... Kf8 {[%clk 0:00:34.8]} 35. f3 {[%clk 0:02:38]} 35... Bd5 {[%clk
0:00:35.9]} 36. Kf2 {[%clk 0:02:37.6]} 36... Ke7 {[%clk 0:00:27]} 37. Ke3 {[%clk
0:02:37.4]} 37... exf3 {[%clk 0:00:12.9]} 38. Bxf3 {[%clk 0:02:37.6]} 38... Bxa2
{[%clk 0:00:13.9]} 39. Ra1 {[%clk 0:02:37.1]} 39... Bb3 {[%clk 0:00:15.2]} 40.
Rxa3 {[%clk 0:02:31.8]} 40... Bxc2 {[%clk 0:00:16.3]} 41. Ra1 {[%clk 0:02:32.1]}
41... Kd6 {[%clk 0:00:14.3]} 42. Rc1 {[%clk 0:02:33]} 42... Ba4 {[%clk
0:00:14.5]} 43. d5 {[%clk 0:02:32.8]} 43... Bb5 {[%clk 0:00:14.7]} 44. Kd4
{[%clk 0:02:30.1]} 44... Rc4+ {[%clk 0:00:15.4]} 45. Ke3 {[%clk 0:02:31.3]}
45... Kc5 {[%clk 0:00:16.1]} 46. Rd1 {[%clk 0:02:20.8]} 46... c2 {[%clk
0:00:14.3]} 47. Rc1 {[%clk 0:02:21.6]} 47... Kb4 {[%clk 0:00:15.5]} 48. Kd2
{[%clk 0:02:22]} 48... Kb3 {[%clk 0:00:16.1]} 49. Ke1 {[%clk 0:02:14.7]} 49...
Kb2 {[%clk 0:00:16.5]} 0-1

[Event "*** Titled Tuesday Blitz"]
[Site "Chess.com"]
[Date "2019.07.02"]
[Round "4"]
[White "dolynachess"]
[Black "riconaipe"]
[Result "1-0"]
[WhiteElo "2463"]
[BlackElo "2483"]
[TimeControl "180+2"]
[EndTime "13:51:51 PDT"]
[Termination "dolynachess won by checkmate"]

1. d4 {[%clk 0:03:01.9]} 1... d5 {[%clk 0:02:55.9]} 2. c4 {[%clk 0:03:01.6]}
2... e6 {[%clk 0:02:57.2]} 3. Nf3 {[%clk 0:03:02.6]} 3... c6 {[%clk 0:02:45.8]}
4. g3 {[%clk 0:03:02.6]} 4... f5 {[%clk 0:02:47.2]} 5. Bg2 {[%clk 0:03:02.9]}
5... Nf6 {[%clk 0:02:48.4]} 6. O-O {[%clk 0:03:03.8]} 6... Bd6 {[%clk
0:02:46.9]} 7. b3 {[%clk 0:03:03.8]} 7... O-O {[%clk 0:02:48]} 8. Ba3 {[%clk
0:02:53.2]} 8... Ne4 {[%clk 0:02:47.2]} 9. Qc1 {[%clk 0:02:51.6]} 9... b5 {[%clk
0:02:44]} 10. Ne5 {[%clk 0:02:44.2]} 10... b4 {[%clk 0:02:38.4]} 11. Bb2 {[%clk
0:02:42.6]} 11... Ba6 {[%clk 0:02:37]} 12. a3 {[%clk 0:02:40.1]} 12... c5 {[%clk
0:02:20.6]} 13. axb4 {[%clk 0:02:29.8]} 13... cxb4 {[%clk 0:02:06]} 14. Nc6
{[%clk 0:02:01.6]} 14... Qc8 {[%clk 0:01:55.5]} 15. Nxb8 {[%clk 0:01:55.1]}
15... Rxb8 {[%clk 0:01:52.2]} 16. c5 {[%clk 0:01:55.9]} 16... Bc7 {[%clk
0:01:33.1]} 17. Re1 {[%clk 0:01:51.1]} 17... f4 {[%clk 0:01:34.2]} 18. Nd2
{[%clk 0:01:39.7]} 18... Nxf2 {[%clk 0:01:33.5]} 19. Kxf2 {[%clk 0:01:35.3]}
19... fxg3+ {[%clk 0:01:33.3]} 20. Kg1 {[%clk 0:01:36.4]} 20... gxh2+ {[%clk
0:01:28.3]} 21. Kh1 {[%clk 0:01:37.2]} 21... Rf2 {[%clk 0:01:21.5]} 22. Nf3
{[%clk 0:01:34.4]} 22... Rxe2 {[%clk 0:01:07.4]} 23. Rxe2 {[%clk 0:01:32.3]}
23... Bxe2 {[%clk 0:01:08.9]} 24. Qe3 {[%clk 0:01:23.1]} 24... Bxf3 {[%clk
0:01:06.2]} 25. Bxf3 {[%clk 0:01:20.5]} 25... a5 {[%clk 0:01:03]} 26. Bg4 {[%clk
0:01:20.2]} 26... Qf8 {[%clk 0:01:02.1]} 27. Qxe6+ {[%clk 0:01:05.5]} 27... Kh8
{[%clk 0:01:02.5]} 28. Qxd5 {[%clk 0:01:06.6]} 28... Qf2 {[%clk 0:00:58.1]} 29.
Qg2 {[%clk 0:01:07.3]} 29... Qe3 {[%clk 0:00:45]} 30. d5 {[%clk 0:01:06.9]}
30... Qxc5 {[%clk 0:00:41]} 31. Be6 {[%clk 0:00:27.3]} 31... Qe7 {[%clk
0:00:41.3]} 32. Rf1 {[%clk 0:00:25.1]} 32... Rf8 {[%clk 0:00:35]} 33. Qxg7+
{[%clk 0:00:22.7]} 33... Qxg7 {[%clk 0:00:32.4]} 34. Rxf8# {[%clk 0:00:23.6]}
1-0

[Event "*** Titled Tuesday Blitz"]
[Site "Chess.com"]
[Date "2019.07.02"]
[Round "4"]
[White "adriangschnitzer"]
[Black "Eliwood44"]
[Result "1/2-1/2"]
[WhiteElo "2469"]
[BlackElo "2335"]
[TimeControl "180+2"]
[EndTime "13:51:54 PDT"]
[Termination "Game drawn by repetition"]

1. e4 {[%clk 0:03:01.9]} 1... e5 {[%clk 0:03:00.8]} 2. Nf3 {[%clk 0:03:01.5]}
2... Nc6 {[%clk 0:03:02.1]} 3. Bc4 {[%clk 0:03:02.6]} 3... Nf6 {[%clk
0:03:02.8]} 4. d3 {[%clk 0:03:03.6]} 4... h6 {[%clk 0:03:03.5]} 5. a4 {[%clk
0:03:02.5]} 5... d6 {[%clk 0:03:04.4]} 6. c3 {[%clk 0:03:01]} 6... g5 {[%clk
0:03:05.2]} 7. Be3 {[%clk 0:03:00.7]} 7... Bg7 {[%clk 0:03:06.2]} 8. Nbd2 {[%clk
0:03:00.7]} 8... Qe7 {[%clk 0:03:07.2]} 9. h4 {[%clk 0:03:01.5]} 9... g4 {[%clk
0:03:08.1]} 10. Ng1 {[%clk 0:03:02.3]} 10... Be6 {[%clk 0:03:06.8]} 11. h5
{[%clk 0:03:02.4]} 11... d5 {[%clk 0:03:05.5]} 12. exd5 {[%clk 0:02:58.9]} 12...
Nxd5 {[%clk 0:02:58.3]} 13. Ne2 {[%clk 0:02:58.3]} 13... Nxe3 {[%clk 0:02:49.9]}
14. fxe3 {[%clk 0:03:00.2]} 14... O-O-O {[%clk 0:02:50.1]} 15. Qc2 {[%clk
0:02:54.2]} 15... e4 {[%clk 0:02:45.5]} 16. Bxe6+ {[%clk 0:02:50.3]} 16... Qxe6
{[%clk 0:02:44.5]} 17. Nxe4 {[%clk 0:02:47.3]} 17... f5 {[%clk 0:02:44.9]} 18.
N4g3 {[%clk 0:01:57.3]} 18... Qxe3 {[%clk 0:02:40.2]} 19. Nxf5 {[%clk
0:01:57.9]} 19... Qe5 {[%clk 0:02:12.2]} 20. d4 {[%clk 0:01:39]} 20... Qf6
{[%clk 0:02:02.5]} 21. Nxg7 {[%clk 0:01:34.7]} 21... Qxg7 {[%clk 0:02:04.4]} 22.
O-O-O {[%clk 0:01:34.8]} 22... Rhe8 {[%clk 0:02:00.1]} 23. Ng3 {[%clk
0:01:33.9]} 23... Qg5+ {[%clk 0:01:49.9]} 24. Kb1 {[%clk 0:01:34.8]} 24... Re3
{[%clk 0:01:50]} 25. Qf5+ {[%clk 0:01:35.1]} 25... Qxf5+ {[%clk 0:01:48.8]} 26.
Nxf5 {[%clk 0:01:37]} 26... Re2 {[%clk 0:01:50.2]} 27. Nxh6 {[%clk 0:01:35.8]}
27... Rxg2 {[%clk 0:01:50]} 28. Rdg1 {[%clk 0:01:33.2]} 28... Rxg1+ {[%clk
0:01:50.5]} 29. Rxg1 {[%clk 0:01:35.1]} 29... Rh8 {[%clk 0:01:51.6]} 30. Nxg4
{[%clk 0:01:31.6]} 30... Rxh5 {[%clk 0:01:49.6]} 31. Nf6 {[%clk 0:01:33]} 31...
Rh8 {[%clk 0:01:49.1]} 32. Rg8+ {[%clk 0:01:29.2]} 32... Rxg8 {[%clk 0:01:48.5]}
33. Nxg8 {[%clk 0:01:31.1]} 33... Kd7 {[%clk 0:01:45.6]} 34. Kc1 {[%clk
0:01:32.2]} 34... Na5 {[%clk 0:01:39.5]} 35. Kc2 {[%clk 0:01:31]} 35... b6
{[%clk 0:01:37.7]} 36. b3 {[%clk 0:01:26.4]} 36... c5 {[%clk 0:01:36.4]} 37. d5
{[%clk 0:01:23.3]} 37... c4 {[%clk 0:01:36.6]} 38. b4 {[%clk 0:01:19.9]} 38...
Nb3 {[%clk 0:01:33.5]} 39. Nf6+ {[%clk 0:01:16.7]} 39... Kd6 {[%clk 0:01:33.7]}
40. Ng4 {[%clk 0:01:14.1]} 40... a6 {[%clk 0:01:29.6]} 41. Ne3 {[%clk
0:01:10.6]} 41... b5 {[%clk 0:01:30.6]} 42. axb5 {[%clk 0:01:11.3]} 42... axb5
{[%clk 0:01:32.5]} 43. Kd1 {[%clk 0:01:02.3]} 43... Ke5 {[%clk 0:01:29.3]} 44.
Kc2 {[%clk 0:00:41.7]} 44... Kd6 {[%clk 0:01:26.3]} 45. Kd1 {[%clk 0:00:17.4]}
45... Ke5 {[%clk 0:01:26.1]} 46. Kc2 {[%clk 0:00:18.7]} 46... Kd6 {[%clk
0:01:27.1]} 1/2-1/2

[Event "*** Titled Tuesday Blitz"]
[Site "Chess.com"]
[Date "2019.07.02"]
[Round "4"]
[White "Zubrrr"]
[Black "Sanan_Sjugirov"]
[Result "0-1"]
[WhiteElo "2740"]
[BlackElo "2960"]
[TimeControl "180+2"]
[EndTime "13:51:55 PDT"]
[Termination "Sanan_Sjugirov won by resignation"]

1. c4 {[%clk 0:03:01.9]} 1... e6 {[%clk 0:02:55.5]} 2. g3 {[%clk 0:03:03.2]}
2... d5 {[%clk 0:02:56.3]} 3. Bg2 {[%clk 0:03:04.9]} 3... Nf6 {[%clk 0:02:55.5]}
4. Nf3 {[%clk 0:03:06.1]} 4... dxc4 {[%clk 0:02:56.4]} 5. Na3 {[%clk 0:03:07]}
5... Bxa3 {[%clk 0:02:45.5]} 6. bxa3 {[%clk 0:03:08.9]} 6... O-O {[%clk
0:02:44.7]} 7. Qc2 {[%clk 0:03:08.7]} 7... Qd5 {[%clk 0:02:23.6]} 8. O-O {[%clk
0:03:03.3]} 8... Qe4 {[%clk 0:02:23.6]} 9. Qd1 {[%clk 0:02:59.3]} 9... Qf5
{[%clk 0:02:03.7]} 10. Bb2 {[%clk 0:02:56.8]} 10... Nc6 {[%clk 0:01:59.2]} 11.
Rc1 {[%clk 0:02:54.6]} 11... e5 {[%clk 0:01:57.1]} 12. Rxc4 {[%clk 0:02:21.5]}
12... Be6 {[%clk 0:01:54.8]} 13. Nh4 {[%clk 0:02:11.3]} 13... Qh5 {[%clk
0:01:53.5]} 14. Rc5 {[%clk 0:01:50.2]} 14... Nd7 {[%clk 0:01:34.9]} 15. Rb5
{[%clk 0:01:47.1]} 15... Rab8 {[%clk 0:01:31.5]} 16. Bf3 {[%clk 0:01:18.3]}
16... Qg5 {[%clk 0:01:31.3]} 17. Bc3 {[%clk 0:01:05.1]} 17... a6 {[%clk
0:01:27.5]} 18. Rb2 {[%clk 0:01:05.5]} 18... Rfe8 {[%clk 0:00:58.3]} 19. Qb1
{[%clk 0:00:53.9]} 19... Nb6 {[%clk 0:00:48.7]} 20. Bxc6 {[%clk 0:00:46.8]}
20... bxc6 {[%clk 0:00:50.6]} 21. Nf3 {[%clk 0:00:47.7]} 21... Qh5 {[%clk
0:00:51.9]} 22. Nxe5 {[%clk 0:00:44.1]} 22... Bh3 {[%clk 0:00:43.6]} 23. Nxc6
{[%clk 0:00:31.9]} 23... Qd5 {[%clk 0:00:41.6]} 24. f3 {[%clk 0:00:24.8]} 24...
Qxc6 {[%clk 0:00:41.7]} 25. Rf2 {[%clk 0:00:25.2]} 25... h5 {[%clk 0:00:37.3]}
26. e4 {[%clk 0:00:17.8]} 26... Nd7 {[%clk 0:00:34]} 27. Qa1 {[%clk 0:00:14.8]}
27... Rxb2 {[%clk 0:00:34.3]} 28. Qxb2 {[%clk 0:00:16.2]} 28... Rb8 {[%clk
0:00:35]} 29. Qa1 {[%clk 0:00:17.2]} 29... Qb6 {[%clk 0:00:33]} 30. Qe1 {[%clk
0:00:14.4]} 30... Nc5 {[%clk 0:00:27.1]} 0-1